fUST/lending_fUST_20240927
["ID","MTS","AMOUNT","RATE_DAILY","PERIOD"]
[339229829,1727381441990,-151.0,0.00021969,7]
[339229830,1727381442000,-269.959029,0.00021969,7]
[339229831,1727381442010,-151.0,0.00021969,7]
[339229832,1727381442020,-151.0,0.00021969,7]
[339229833,1727381442031,-54748.9726004,0.00021979,3]
[339229834,1727381442042,-151.0,0.00021979,7]
[339229835,1727381442052,-151.0,0.00021979,7]
[339229836,1727381442061,-151.0,0.00021979,7]
[339229837,1727381442071,-151.0,0.00021979,7]
[339229838,1727381442080,-151.0,0.00021979,7]
[339229839,1727381442089,-151.0,0.00021989,7]
[339229840,1727381442101,-151.0,0.00021989,7]
[339229841,1727381442110,-151.0,0.00021989,7]
[339229842,1727381442120,-151.0,0.00021989,7]
[339229843,1727381442129,-151.0,0.00021989,7]
[339229844,1727381442140,-151.0,0.00021989,7]
[339229845,1727381442149,-151.0,0.00021989,7]
[339229846,1727381442158,-151.0,0.00021989,7]
[339229847,1727381442167,-151.0,0.00021989,7]
[339229848,1727381442177,-151.0,0.00021989,7]
[339229849,1727381442189,-151.0,0.00021989,7]
[339229850,1727381442198,-151.0,0.00021989,7]
[339229851,1727381442208,-151.0,0.00021989,7]
[339229852,1727381442221,-151.0,0.00021989,7]
[339229853,1727381442230,-1512.3278663,0.00021998,2]
[339229854,1727381442240,-308.73225216,0.00021998,2]
[339229855,1727381442250,-160.0,0.00021998,2]
[339229856,1727381442260,-1831.15005552,0.00021999,2]
[339229857,1727381442270,-894.72742819,0.00021999,2]
[339229858,1727381442279,-500.0,0.00021999,2]
[339229859,1727381442289,-500.0,0.00021999,2]
[339229860,1727381442298,-500.0,0.00021999,2]
[339229861,1727381442307,-500.0,0.00021999,2]
[339229862,1727381442316,-500.0,0.00021999,2]
[339229863,1727381442326,-500.0,0.00021999,2]
[339229864,1727381442335,-315.32222032,0.00021999,2]
[339229865,1727381442345,-500.0,0.00021999,120]
[339229866,1727381442355,-500.0,0.00021999,120]
[339229867,1727381442364,-151.0,0.00021999,7]
[339229868,1727381442374,-151.0,0.00021999,7]
[339229869,1727381442383,-500.0,0.00021999,120]
[339229870,1727381442394,-502.13564948,0.00021999,120]
[339229871,1727381442407,-151.0,0.00021999,7]
[339229872,1727381442417,-151.0,0.00021999,7]
[339229873,1727381442427,-151.0,0.00021999,7]
[339229874,1727381442437,-151.0,0.00021999,7]
[339229875,1727381442448,-151.0,0.00021999,7]
[339229876,1727381442458,-151.0,0.00021999,7]
[339229877,1727381442468,-151.0,0.00021999,7]
[339229878,1727381442479,-151.0,0.00021999,7]
[339229879,1727381442488,-151.0,0.00021999,7]
[339229880,1727381442497,-151.0,0.00021999,7]
[339229881,1727381442506,-151.0,0.00021999,7]
[339229882,1727381442515,-151.0,0.00021999,7]
[339229883,1727381442525,-151.0,0.00021999,7]
[339229884,1727381442536,-268.605728,0.00021999,7]
[339229885,1727381442546,-500.0,0.00021999,120]
[339229886,1727381442556,-501.52354579,0.00021999,120]
[339229887,1727381442565,-503.19260658,0.00021999,120]
[339229888,1727381442575,-506.38772784,0.00021999,120]
[339229889,1727381442585,-500.0,0.00021999,2]
[339229890,1727381442595,-500.0,0.00021999,2]
[339229891,1727381442606,-500.0,0.00021999,2]
[339229892,1727381442618,-517.19384589,0.00021999,2]
[339229893,1727381442629,-500.50813288,0.00021999,120]
[339229894,1727381442639,-500.0,0.00021999,120]
[339229895,1727381442649,-500.0,0.00021999,120]
[339229896,1727381442659,-500.0,0.00021999,120]
[339229897,1727381442668,-500.0,0.00021999,120]
[339229898,1727381442678,-206.50780872,0.00021999,120]
[339229899,1727381442687,-1030.73,0.00021999,2]
[339229900,1727381442697,-1030.73,0.00021999,2]
[339229901,1727381442707,-1030.73,0.00021999,2]
[339229902,1727381442718,-1030.73,0.00021999,2]
[339229903,1727381442728,-1030.73,0.00021999,2]
[339229904,1727381442739,-1030.73,0.00021999,2]
[339229905,1727381442748,-1030.73,0.00021999,2]
[339229906,1727381442757,-1030.73,0.00021999,2]
[339229907,1727381442767,-1030.73,0.00021999,2]
[339229908,1727381442777,-1030.73,0.00021999,2]
[339229909,1727381442787,-1030.73,0.00021999,2]
[339229910,1727381442798,-500.0,0.00021999,120]
[339229911,1727381442807,-1030.73,0.00021999,2]
[339229912,1727381442817,-1030.73,0.00021999,2]
[339229913,1727381442827,-500.0,0.00021999,120]
[339229914,1727381442838,-506.46726146,0.00021999,120]
[339229915,1727381442849,-508.97853094,0.00021999,120]
[339229916,1727381442860,-1030.73,0.00021999,2]
[339229917,1727381442869,-1030.73,0.00021999,2]
[339229918,1727381442880,-1030.73,0.00021999,2]
[339229919,1727381442890,-1030.73,0.00021999,2]
[339229920,1727381442901,-1030.73,0.00021999,2]
[339229921,1727381442911,-1030.73,0.00021999,2]
[339229922,1727381442924,-1030.73,0.00021999,2]
[339229923,1727381442935,-1030.73,0.00021999,2]
[339229924,1727381442945,-1030.73,0.00021999,2]
[339229931,1727381443044,-1030.73,0.00021999,2]
[339229933,1727381443065,-1030.90999753,0.00021999,2]
[339229935,1727381443074,-599.815867,0.00021999,120]
[339229936,1727381443084,-503.63596924,0.00021999,120]
[339229938,1727381443096,-500.0,0.00021999,120]
[339229940,1727381443106,-502.38613304,0.00021999,120]
[339229941,1727381443115,-725.71,0.00021999,25]
[339229942,1727381443124,-725.71,0.00021999,25]
[339229943,1727381443135,-725.71,0.00021999,25]
[339229945,1727381443144,-725.71,0.00021999,25]
[339229947,1727381443153,-725.71,0.00021999,25]
[339229949,1727381443164,-725.71,0.00021999,25]
[339229951,1727381443176,-500.0,0.00021999,120]
[339229952,1727381443186,-725.71,0.00021999,25]
[339229954,1727381443196,-508.88685302,0.00021999,120]
[339229956,1727381443206,-725.71,0.00021999,25]
[339229958,1727381443215,-725.71,0.00021999,25]
[339229960,1727381443225,-500.0,0.00021999,10]
[339229963,1727381443235,-725.71,0.00021999,25]
[339229964,1727381443244,-500.0,0.00021999,10]
[339229966,1727381443254,-500.0,0.00021999,10]
[339229968,1727381443263,-725.71,0.00021999,25]
[339229970,1727381443272,-725.71,0.00021999,25]
[339229972,1727381443281,-500.0,0.00021999,10]
[339229974,1727381443291,-725.71,0.00021999,25]
[339229977,1727381443301,-500.0,0.00021999,10]
[339229981,1727381443310,-725.71,0.00021999,25]
[339229982,1727381443320,-506.26578978,0.00021999,120]
[339229984,1727381443330,-500.0,0.00021999,10]
[339229987,1727381443339,-500.0,0.00021999,10]
[339229990,1727381443349,-500.0,0.00021999,10]
[339229994,1727381443359,-725.71,0.00021999,25]
[339229997,1727381443368,-725.71,0.00021999,25]
[339230000,1727381443377,-500.0,0.00021999,10]
[339230002,1727381443386,-725.71,0.00021999,25]
[339230004,1727381443395,-589.7915112,0.00021999,10]
[339230005,1727381443404,-725.71,0.00021999,25]
[339230007,1727381443414,-725.71,0.00021999,25]
[339230009,1727381443422,-725.71,0.00021999,25]
[339230011,1727381443432,-503.59862527,0.00021999,120]
[339230012,1727381443441,-725.71,0.00021999,25]
[339230013,1727381443449,-725.71,0.00021999,25]
[339230014,1727381443458,-725.71,0.00021999,25]
[339230015,1727381443468,-725.71615227,0.00021999,25]
[339230016,1727381443476,-535.14646016,0.00021999,120]
[339230017,1727381443486,-502.90530961,0.00021999,120]
[339230018,1727381443496,-500.0,0.00021999,120]
[339230019,1727381443506,-500.0,0.00021999,120]
[339230020,1727381443516,-505.26937943,0.00021999,120]
[339230021,1727381443526,-151.0,0.00021999,7]
[339230022,1727381443536,-231.044768,0.00021999,7]
[339230023,1727381443545,-500.0,0.00021999,120]
[339230024,1727381443555,-506.41081867,0.00021999,120]
[339230025,1727381443565,-504.06259911,0.00021999,120]
[339230026,1727381443574,-2337.36,0.00021999,5]
[339230027,1727381443584,-2337.36,0.00021999,5]
[339230028,1727381443594,-2337.36,0.00021999,5]
[339230029,1727381443603,-2337.36,0.00021999,5]
[339230030,1727381443613,-2337.36,0.00021999,5]
[339230031,1727381443624,-2337.36,0.00021999,5]
[339230032,1727381443635,-2337.36,0.00021999,5]
[339230033,1727381443645,-2337.36,0.00021999,5]
[339230034,1727381443655,-2337.36,0.00021999,5]
[339230035,1727381443665,-500.0,0.00021999,120]
[339230036,1727381443674,-2337.36,0.00021999,5]
[339230037,1727381443683,-503.0,0.00021999,120]
[339230038,1727381443693,-2337.36,0.00021999,5]
[339230039,1727381443702,-2337.36,0.00021999,5]
[339230040,1727381443711,-2337.36,0.00021999,5]
[339230041,1727381443720,-2337.36,0.00021999,5]
[339230042,1727381443730,-2337.36,0.00021999,5]
[339230043,1727381443742,-2337.36,0.00021999,5]
[339230044,1727381443751,-2337.36,0.00021999,5]
[339230045,1727381443760,-2337.36,0.00021999,5]
[339230046,1727381443769,-2337.36,0.00021999,5]
[339230048,1727381443779,-2337.36,0.00021999,5]
[339230049,1727381443789,-504.33733776,0.00021999,120]
[339230050,1727381443798,-2337.36,0.00021999,5]
[339230051,1727381443807,-2337.36,0.00021999,5]
[339230052,1727381443817,-2337.36,0.00021999,5]
[339230054,1727381443827,-2337.49654747,0.00021999,5]
[339230055,1727381443837,-500.0,0.00021999,120]
[339230056,1727381443846,-505.27325616,0.00021999,120]
[339230057,1727381443855,-500.0,0.00021999,120]
[339230058,1727381443865,-502.1774082,0.00021999,120]
[339230059,1727381443875,-500.0,0.00021999,120]
[339230060,1727381443885,-500.0,0.00021999,120]
[339230061,1727381443894,-500.0,0.00021999,120]
[339230062,1727381443903,-506.88725659,0.00021999,120]
[339230063,1727381443912,-500.78719108,0.00021999,120]
[339230064,1727381443921,-504.48632035,0.00021999,120]
[339230065,1727381443931,-502.45037235,0.00021999,120]
[339230066,1727381443941,-500.0,0.00021999,120]
[339230067,1727381443950,-500.0,0.00021999,120]
[339230068,1727381443959,-500.0,0.00021999,120]
[339230069,1727381443968,-500.0,0.00021999,120]
[339230070,1727381443977,-500.0,0.00021999,120]
[339230071,1727381443989,-500.0,0.00021999,120]
[339230072,1727381443998,-500.0,0.00021999,120]
[339230073,1727381444008,-500.0,0.00021999,120]
[339230074,1727381444017,-500.0,0.00021999,120]
[339230075,1727381444027,-541.3,0.00021999,120]
[339230076,1727381444036,-500.0,0.00021999,120]
[339230077,1727381444045,-504.55886681,0.00021999,120]
[339230078,1727381444054,-500.0,0.00021999,120]
[339230079,1727381444064,-311.80473511,0.00021999,120]
[339230080,1727381444074,-500.0,0.00021999,120]
[339230081,1727381444083,-506.57052702,0.00021999,120]
[339230082,1727381444094,-507.99662457,0.00021999,120]
[339230083,1727381444107,-500.0,0.00021999,120]
[339230084,1727381444116,-516.81643273,0.00021999,120]
[339230085,1727381444125,-500.0,0.00021999,120]
[339230086,1727381444136,-502.97389559,0.00021999,120]
[339230087,1727381444145,-509.47306663,0.00021999,120]
[339230088,1727381444154,-500.0,0.00021999,30]
[339230089,1727381444164,-500.0,0.00021999,120]
[339230090,1727381444173,-500.0,0.00021999,120]
[339230091,1727381444185,-505.18869353,0.00021999,120]
[339230092,1727381444195,-500.0,0.00021999,120]
[339230093,1727381444205,-510.59149763,0.00021999,120]
[339230094,1727381444214,-500.0,0.00021999,120]
[339230095,1727381444224,-507.30503543,0.00021999,120]
[339230096,1727381444236,-151.0,0.00021999,7]
[339230097,1727381444245,-172.527836,0.00021999,7]
[339230098,1727381444255,-502.54731216,0.00021999,120]
[339230099,1727381444264,-505.02335943,0.00021999,120]
[339230100,1727381444273,-500.0,0.00021999,120]
[339230101,1727381444283,-457.10591749,0.00021999,120]
[339230102,1727381444292,-407.26449209,0.00021999,120]
[339230103,1727381444302,-500.0,0.00021999,30]
[339230104,1727381444312,-500.0,0.00021999,30]
[339230105,1727381444321,-641.6839944,0.00021999,30]
[339230106,1727381444332,-151.0,0.00021999,7]
[339230107,1727381444341,-500.0,0.00021999,120]
[339230108,1727381444351,-500.0,0.00021999,120]
[339230109,1727381444361,-500.0,0.00021999,120]
[339230110,1727381444371,-312.23,0.00021999,120]
[339230111,1727381444382,-500.0,0.00021999,120]
[339230112,1727381444392,-500.0,0.00021999,120]
[339230113,1727381444401,-427.57,0.00021999,120]
[339230114,1727381444411,-504.56709286,0.00021999,120]
[339230115,1727381444421,-503.9571007,0.00021999,120]
[339230116,1727381444431,-507.87431314,0.00021999,120]
[339230117,1727381444442,-586.00331074,0.00021999,120]
[339230118,1727381444453,-500.0,0.00021999,120]
[339230119,1727381444463,-500.0,0.00021999,120]
[339230120,1727381444472,-500.0,0.00021999,120]
[339230121,1727381444482,-339.8628852,0.00021999,120]
[339230122,1727381444491,-512.72377837,0.00021999,120]
[339230123,1727381444501,-500.0,0.00021999,120]
[339230124,1727381444510,-500.0,0.00021999,120]
[339230125,1727381444520,-500.0,0.00021999,120]
[339230126,1727381444530,-500.0,0.00021999,120]
[339230127,1727381444541,-504.82000243,0.00021999,120]
[339230128,1727381444551,-500.0,0.00021999,120]
[339230129,1727381444561,-387.08560347,0.00021999,120]
[339230130,1727381444570,-502.28433676,0.00021999,120]
[339230131,1727381444580,-504.87022391,0.00021999,120]
[339230132,1727381444589,-515.44441386,0.00021999,120]
[339230133,1727381444599,-507.83377196,0.00021999,120]
[339230134,1727381444607,-500.0,0.00021999,120]
[339230135,1727381444617,-503.03317965,0.00021999,120]
[339230136,1727381444626,-501.0279355,0.00021999,120]
[339230137,1727381444635,-501.56942968,0.00021999,120]
[339230138,1727381444645,-285.33730379,0.00021999,120]
[339230139,1727381444654,-563.96058372,0.00021999,120]
[339230140,1727381444663,-502.91320453,0.00021999,120]
[339230141,1727381444673,-503.78496589,0.00021999,120]
[339230142,1727381444682,-516.07363785,0.00021999,120]
[339230143,1727381444691,-503.09312923,0.00021999,120]
[339230144,1727381444701,-503.3835725,0.00021999,120]
[339230145,1727381444710,-508.21840169,0.00021999,120]
[339230146,1727381444719,-500.0,0.00021999,7]
[339230147,1727381444729,-500.0,0.00021999,7]
[339230148,1727381444740,-500.0,0.00021999,7]
[339230149,1727381444750,-500.0,0.00021999,7]
[339230150,1727381444760,-500.0,0.00021999,7]
[339230151,1727381444769,-500.0,0.00021999,7]
[339230152,1727381444778,-389.08448722,0.00021999,7]
[339230153,1727381444787,-500.0,0.00021999,120]
[339230154,1727381444797,-503.88229973,0.00021999,120]
[339230155,1727381444806,-505.45410384,0.00021999,120]
[339230156,1727381444816,-590.86001864,0.00021999,120]
[339230157,1727381444825,-526.62330057,0.00021999,120]
[339230158,1727381444834,-500.8998125,0.00021999,120]
[339230159,1727381444844,-500.0,0.00021999,120]
[339230160,1727381444853,-367.48564601,0.00021999,120]
[339230161,1727381444862,-547.26700307,0.00021999,120]
[339230162,1727381444871,-500.0,0.00021999,120]
[339230163,1727381444882,-500.0,0.00021999,120]
[339230164,1727381444891,-504.55730846,0.00021999,120]
[339230165,1727381444900,-500.0,0.00021999,120]
[339230166,1727381444909,-500.0,0.00021999,120]
[339230167,1727381444919,-161.83390764,0.00021999,120]
[339230168,1727381444929,-505.19458745,0.00021999,120]
[339230169,1727381444938,-500.0,0.00021999,120]
[339230170,1727381444947,-500.0,0.00021999,120]
[339230171,1727381444956,-511.33747234,0.00021999,120]
[339230172,1727381444966,-503.93265508,0.00021999,120]
[339230173,1727381444975,-500.0,0.00021999,120]
[339230174,1727381444985,-610.0,0.00021999,120]
[339230175,1727381444994,-620.18,0.00021999,120]
[339230176,1727381445004,-555.08255071,0.00021999,120]
[339230177,1727381445013,-500.0,0.00021999,120]
[339230178,1727381445022,-239.3389003,0.00021999,120]
[339230179,1727381445031,-500.0,0.00021999,120]
[339230180,1727381445040,-501.26644722,0.00021999,120]
[339230181,1727381445050,-502.49782294,0.00021999,120]
[339230182,1727381445060,-500.0,0.00021999,120]
[339230183,1727381445068,-500.0,0.00021999,7]
[339230184,1727381445077,-500.0,0.00021999,120]
[339230185,1727381445087,-500.0,0.00021999,120]
[339230186,1727381445096,-502.86604646,0.00021999,7]
[339230187,1727381445108,-382.71284575,0.00021999,120]
[339230188,1727381445117,-500.0,0.00021999,120]
[339230189,1727381445127,-500.0,0.00021999,120]
[339230190,1727381445137,-680.76,0.00021999,120]
[339230191,1727381445146,-267.92,0.00021999,7]
[339230192,1727381445156,-2662.98,0.00021999,2]
[339230193,1727381445165,-680.76,0.00021999,120]
[339230194,1727381445175,-504.16760848,0.00021999,120]
[339230195,1727381445185,-267.92,0.00021999,7]
[339230196,1727381445194,-2662.98,0.00021999,2]
[339230197,1727381445203,-680.76,0.00021999,120]
[339230198,1727381445212,-2662.98,0.00021999,2]
[339230199,1727381445221,-680.76,0.00021999,120]
[339230200,1727381445230,-267.92,0.00021999,7]
[339230201,1727381445240,-2662.98,0.00021999,2]
[339230202,1727381445249,-680.76,0.00021999,120]
[339230203,1727381445259,-2662.98,0.00021999,2]
[339230204,1727381445268,-680.76,0.00021999,120]
[339230205,1727381445278,-267.92,0.00021999,7]
[339230206,1727381445287,-2662.98,0.00021999,2]
[339230207,1727381445297,-680.76,0.00021999,120]
[339230208,1727381445306,-2662.98,0.00021999,2]
[339230209,1727381445315,-267.92,0.00021999,7]
[339230210,1727381445325,-680.76,0.00021999,120]
[339230211,1727381445334,-267.92,0.00021999,7]
[339230212,1727381445343,-680.76,0.00021999,120]
[339230213,1727381445351,-2662.98,0.00021999,2]
[339230214,1727381445361,-267.92,0.00021999,7]
[339230215,1727381445370,-2662.98,0.00021999,2]
[339230216,1727381445379,-680.76,0.00021999,120]
[339230217,1727381445389,-2662.98,0.00021999,2]
[339230218,1727381445397,-500.0,0.00021999,120]
[339230219,1727381445407,-267.92,0.00021999,7]
[339230220,1727381445417,-2662.98,0.00021999,2]
[339230221,1727381445426,-500.0,0.00021999,120]
[339230222,1727381445435,-680.76,0.00021999,120]
[339230223,1727381445444,-267.92,0.00021999,7]
[339230224,1727381445453,-503.82395502,0.00021999,120]
[339230225,1727381445462,-680.76,0.00021999,120]
[339230226,1727381445472,-502.79658034,0.00021999,120]
[339230227,1727381445481,-267.92,0.00021999,7]
[339230228,1727381445491,-2662.98,0.00021999,2]
[339230229,1727381445501,-267.92,0.00021999,7]
[339230230,1727381445510,-2662.98,0.00021999,2]
[339230231,1727381445518,-2662.98,0.00021999,2]
[339230232,1727381445527,-680.76,0.00021999,120]
[339230233,1727381445537,-2662.98,0.00021999,2]
[339230234,1727381445547,-267.92,0.00021999,7]
[339230235,1727381445556,-680.76,0.00021999,120]
[339230236,1727381445565,-2662.98,0.00021999,2]
[339230237,1727381445575,-267.92,0.00021999,7]
[339230238,1727381445584,-2662.98,0.00021999,2]
[339230239,1727381445594,-680.76,0.00021999,120]
[339230240,1727381445603,-267.92,0.00021999,7]
[339230241,1727381445612,-680.76,0.00021999,120]
[339230242,1727381445622,-2662.98,0.00021999,2]
[339230243,1727381445631,-267.92,0.00021999,7]
[339230244,1727381445640,-680.76,0.00021999,120]
[339230245,1727381445649,-267.92,0.00021999,7]
[339230246,1727381445659,-2662.98,0.00021999,2]
[339230247,1727381445668,-503.97492249,0.00021999,120]
[339230248,1727381445677,-680.76,0.00021999,120]
[339230249,1727381445687,-267.92,0.00021999,7]
[339230250,1727381445696,-2662.98,0.00021999,2]
[339230251,1727381445705,-267.92,0.00021999,7]
[339230252,1727381445715,-267.92,0.00021999,7]
[339230253,1727381445724,-680.76,0.00021999,120]
[339230254,1727381445734,-267.92,0.00021999,7]
[339230255,1727381445743,-501.28478165,0.00021999,120]
[339230256,1727381445752,-680.76,0.00021999,120]
[339230257,1727381445861,-267.92,0.00021999,7]
[339230258,1727381445871,-267.92,0.00021999,7]
[339230259,1727381445880,-680.76,0.00021999,120]
[339230260,1727381445890,-680.76,0.00021999,120]
[339230261,1727381445899,-267.92,0.00021999,7]
[339230262,1727381445908,-268.13251587,0.00021999,7]
[339230263,1727381445918,-317.61739615,0.00021999,120]
[339230264,1727381445927,-680.76,0.00021999,120]
[339230265,1727381445937,-2662.98,0.00021999,2]
[339230266,1727381445947,-680.9877086,0.00021999,120]
[339230267,1727381445958,-2662.98,0.00021999,2]
[339230268,1727381445967,-2662.98,0.00021999,2]
[339230269,1727381445977,-2336.67560275,0.00021999,2]
[339230275,1727381446104,-326.46807621,0.00021999,2]
[339230276,1727381446114,-48.22192379,0.00021999,120]
[339230277,1727381446126,-451.77807621,0.00021999,120]
[339230278,1727381446135,-500.0,0.00021999,120]
[339230279,1727381446146,-817.6377036,0.00021999,5]
[339230280,1727381446156,-179.68,0.00021999,120]
[339230281,1727381446165,-597.06295807,0.00021999,120]
[339230282,1727381446174,-502.0307489,0.00021999,120]
[339230283,1727381446185,-502.04151892,0.00021999,120]
[339230284,1727381446195,-500.0,0.00021999,120]
[339230285,1727381446204,-500.0,0.00021999,120]
[339230286,1727381446213,-507.52923771,0.00021999,120]
[339230287,1727381446222,-500.0,0.00021999,120]
[339230288,1727381446231,-502.99371237,0.00021999,120]
[339230289,1727381446241,-501.93254897,0.00021999,120]
[339230290,1727381446250,-500.0,0.00021999,2]
[339230291,1727381446259,-501.09977609,0.00021999,120]
[339230292,1727381446268,-500.0,0.00021999,2]
[339230293,1727381446277,-500.0,0.00021999,2]
[339230294,1727381446286,-500.0,0.00021999,2]
[339230295,1727381446296,-500.0,0.00021999,2]
[339230296,1727381446305,-253.08970251,0.00021999,2]
[339230297,1727381446314,-503.46727178,0.00021999,120]
[339230298,1727381446323,-726.78,0.00021999,120]
[339230300,1727381446333,-515.67353633,0.00021999,120]
[339230301,1727381446341,-726.78,0.00021999,120]
[339230302,1727381446350,-500.0,0.00021999,120]
[339230303,1727381446359,-502.55736432,0.00021999,120]
[339230304,1727381446368,-726.78,0.00021999,120]
[339230305,1727381446378,-500.0,0.00021999,120]
[339230306,1727381446387,-597.74310965,0.00021999,120]
[339230307,1727381446396,-726.78,0.00021999,120]
[339230308,1727381446406,-726.78,0.00021999,120]
[339230309,1727381446415,-726.78,0.00021999,120]
[339230310,1727381446425,-500.0,0.00021999,120]
[339230311,1727381446434,-726.78,0.00021999,120]
[339230312,1727381446444,-163.87137728,0.00021999,120]
[339230313,1727381446454,-726.78,0.00021999,120]
[339230314,1727381446463,-726.78,0.00021999,120]
[339230315,1727381446473,-726.78,0.00021999,120]
[339230316,1727381446482,-726.78,0.00021999,120]
[339230317,1727381446493,-726.78,0.00021999,120]
[339230318,1727381446502,-726.78,0.00021999,120]
[339230319,1727381446511,-726.78,0.00021999,120]
[339230320,1727381446520,-503.33782431,0.00021999,120]
[339230321,1727381446529,-726.78,0.00021999,120]
[339230322,1727381446538,-726.78,0.00021999,120]
[339230323,1727381446547,-726.78,0.00021999,120]
[339230324,1727381446557,-726.78,0.00021999,120]
[339230325,1727381446566,-726.78,0.00021999,120]
[339230326,1727381446575,-726.78,0.00021999,120]
[339230327,1727381446584,-726.78,0.00021999,120]
[339230328,1727381446594,-1654.15,0.00021999,30]
[339230329,1727381446603,-726.78,0.00021999,120]
[339230330,1727381446612,-1654.15,0.00021999,30]
[339230331,1727381446621,-726.78,0.00021999,120]
[339230332,1727381446630,-1654.15,0.00021999,30]
[339230333,1727381446639,-726.90433371,0.00021999,120]
[339230334,1727381446648,-1654.15,0.00021999,30]
[339230335,1727381446659,-1654.15,0.00021999,30]
[339230336,1727381446668,-1654.15,0.00021999,30]
[339230337,1727381446677,-1654.15,0.00021999,30]
[339230338,1727381446686,-1654.15,0.00021999,30]
[339230339,1727381446695,-1654.15,0.00021999,30]
[339230340,1727381446704,-1654.15,0.00021999,30]
[339230341,1727381446715,-1654.15,0.00021999,30]
[339230342,1727381446726,-1654.15,0.00021999,30]
[339230343,1727381446738,-1654.15,0.00021999,30]
[339230344,1727381446748,-1654.15,0.00021999,30]
[339230345,1727381446758,-1654.15,0.00021999,30]
[339230346,1727381446767,-1654.15,0.00021999,30]
[339230347,1727381446776,-1654.15,0.00021999,30]
[339230348,1727381446785,-1654.15,0.00021999,30]
[339230349,1727381446794,-1654.15,0.00021999,30]
[339230350,1727381446803,-1654.15,0.00021999,30]
[339230351,1727381446815,-1654.15,0.00021999,30]
[339230352,1727381446825,-1654.15,0.00021999,30]
[339230353,1727381446835,-500.0,0.00021999,120]
[339230354,1727381446845,-289.87317875,0.00021999,120]
[339230355,1727381446857,-1654.15,0.00021999,30]
[339230356,1727381446867,-1654.31861549,0.00021999,30]
[339230357,1727381446876,-500.0,0.00021999,120]
[339230358,1727381446885,-500.0,0.00021999,120]
[339230359,1727381446894,-501.13446674,0.00021999,120]
[339230360,1727381446905,-500.0,0.00021999,120]
[339230361,1727381446914,-501.60824517,0.00021999,120]
[339230362,1727381446923,-151.0,0.00021999,7]
[339230363,1727381446932,-168.862581,0.00021999,7]
[339230364,1727381446942,-500.0,0.00021999,2]
[339230365,1727381446951,-500.0,0.00021999,2]
[339230366,1727381446961,-500.0,0.00021999,120]
[339230367,1727381446969,-500.0,0.00021999,2]
[339230368,1727381446979,-501.85314975,0.00021999,120]
[339230369,1727381446989,-500.0,0.00021999,2]
[339230370,1727381446998,-500.0,0.00021999,120]
[339230371,1727381447008,-500.0,0.00021999,120]
[339230372,1727381447017,-500.0,0.00021999,2]
[339230373,1727381447026,-256.48874465,0.00021999,120]
[339230374,1727381447035,-515.17891446,0.00021999,120]
[339230375,1727381447046,-500.0,0.00021999,2]
[339230376,1727381447056,-500.0,0.00021999,2]
[339230377,1727381447065,-500.0,0.00021999,2]
[339230378,1727381447074,-500.0,0.00021999,2]
[339230379,1727381447083,-216.45,0.00021999,2]
[339230380,1727381447093,-500.0,0.00021999,120]
[339230381,1727381447104,-501.97075498,0.00021999,120]
[339230382,1727381447114,-500.0,0.00021999,120]
[339230383,1727381447125,-503.1243045,0.00021999,120]